[Event "Late-Titled-Tuesday-Blitz-February-06-2024"]
[Site "Chess.com"]
[Date "2024.02.06"]
[Round "1"]
[White "Karttunen"]
[Black "nikitadovbnya2008"]
[Result "1/2-1/2"]
[WhiteElo "2638"]
[BlackElo "2336"]
[TimeControl "180+1"]
[EndTime "14:07:41 PST"]
[Termination "Game drawn by repetition"]

1. e4 {[%clk 0:03:00.9]} 1... e5 {[%clk 0:02:54.3]} 2. Nf3 {[%clk 0:03:00.6]}
2... Nc6 {[%clk 0:02:54.7]} 3. Bb5 {[%clk 0:03:00.4]} 3... a6 {[%clk 0:02:55]}
4. Ba4 {[%clk 0:03:00.1]} 4... Nf6 {[%clk 0:02:53.9]} 5. O-O {[%clk 0:02:59.7]}
5... Be7 {[%clk 0:02:49.6]} 6. Re1 {[%clk 0:02:59.4]} 6... b5 {[%clk 0:02:49.8]}
7. Bb3 {[%clk 0:02:59.1]} 7... O-O {[%clk 0:02:50.7]} 8. a4 {[%clk 0:02:52.7]}
8... b4 {[%clk 0:02:44.6]} 9. d3 {[%clk 0:02:47.6]} 9... d6 {[%clk 0:02:43.4]}
10. a5 {[%clk 0:02:45.2]} 10... Be6 {[%clk 0:02:41.3]} 11. Bxe6 {[%clk
0:02:34.7]} 11... fxe6 {[%clk 0:02:42.2]} 12. c3 {[%clk 0:02:34.9]} 12... Rb8
{[%clk 0:02:34.1]} 13. Nbd2 {[%clk 0:02:16.4]} 13... Qd7 {[%clk 0:02:29.5]} 14.
Nc4 {[%clk 0:02:15.8]} 14... Nh5 {[%clk 0:02:01.8]} 15. Bd2 {[%clk 0:01:55.5]}
15... Nf4 {[%clk 0:02:00.1]} 16. Qc2 {[%clk 0:01:52.6]} 16... Qe8 {[%clk
0:01:40.5]} 17. Bxf4 {[%clk 0:01:47.9]} 17... Rxf4 {[%clk 0:01:39.8]} 18. Kh1
{[%clk 0:01:17.1]} 18... Qh5 {[%clk 0:01:35.3]} 19. Ncd2 {[%clk 0:01:07]} 19...
Rbf8 {[%clk 0:01:34.7]} 20. Re3 {[%clk 0:01:05.1]} 20... d5 {[%clk 0:01:30.4]}
21. exd5 {[%clk 0:00:59.8]} 21... exd5 {[%clk 0:01:29.3]} 22. Qa4 {[%clk
0:00:53.8]} 22... R8f6 {[%clk 0:01:19]} 23. Rae1 {[%clk 0:00:50.5]} 23... Bd6
{[%clk 0:01:17.8]} 24. Qb3 {[%clk 0:00:47.6]} 24... e4 {[%clk 0:01:14.8]} 25.
dxe4 {[%clk 0:00:41.5]} 25... Rxf3 {[%clk 0:00:57.6]} 26. Nxf3 {[%clk
0:00:38.3]} 26... Rxf3 {[%clk 0:00:57.1]} 27. Qxd5+ {[%clk 0:00:38]} 27... Qxd5
{[%clk 0:00:57.5]} 28. exd5 {[%clk 0:00:38.9]} 28... Rxe3 {[%clk 0:00:56.9]} 29.
Rxe3 {[%clk 0:00:39]} 29... Nxa5 {[%clk 0:00:48.4]} 30. cxb4 {[%clk 0:00:37.3]}
30... Bxb4 {[%clk 0:00:46.9]} 31. Re8+ {[%clk 0:00:38]} 31... Kf7 {[%clk
0:00:46.4]} 32. Ra8 {[%clk 0:00:38.3]} 32... Nc4 {[%clk 0:00:45.3]} 33. Rxa6
{[%clk 0:00:37]} 33... Bd6 {[%clk 0:00:45.2]} 34. b3 {[%clk 0:00:34.3]} 34...
Nd2 {[%clk 0:00:43.1]} 35. g3 {[%clk 0:00:25.7]} 35... Nxb3 {[%clk 0:00:42.3]}
36. Kg2 {[%clk 0:00:26.3]} 36... Nc5 {[%clk 0:00:42.5]} 37. Ra8 {[%clk
0:00:25.2]} 37... Kf6 {[%clk 0:00:42.2]} 38. f4 {[%clk 0:00:25]} 38... Nd7
{[%clk 0:00:33.2]} 39. Kf3 {[%clk 0:00:22.7]} 39... Nb6 {[%clk 0:00:33.6]} 40.
Ra5 {[%clk 0:00:22.5]} 40... h5 {[%clk 0:00:33.6]} 41. h3 {[%clk 0:00:22.3]}
41... g6 {[%clk 0:00:24.3]} 42. Rb5 {[%clk 0:00:21.3]} 42... Ke7 {[%clk
0:00:18.7]} 43. g4 {[%clk 0:00:20.4]} 43... Kf6 {[%clk 0:00:19.2]} 44. Ke4
{[%clk 0:00:20.4]} 44... hxg4 {[%clk 0:00:19.2]} 45. hxg4 {[%clk 0:00:20.6]}
45... g5 {[%clk 0:00:19.5]} 46. fxg5+ {[%clk 0:00:15.6]} 46... Kxg5 {[%clk
0:00:18]} 47. Rb1 {[%clk 0:00:15.7]} 47... Kxg4 {[%clk 0:00:17.4]} 48. Rg1+
{[%clk 0:00:16.4]} 48... Kh5 {[%clk 0:00:17.4]} 49. Rg7 {[%clk 0:00:16]} 49...
Kh4 {[%clk 0:00:16.9]} 50. Rg8 {[%clk 0:00:15.3]} 50... Kh3 {[%clk 0:00:16.9]}
51. Rg7 {[%clk 0:00:15.1]} 51... Kh4 {[%clk 0:00:16.7]} 52. Rg8 {[%clk
0:00:15.4]} 52... Kh3 {[%clk 0:00:17]} 53. Rg7 {[%clk 0:00:15.8]} 53... Kh4
{[%clk 0:00:16]} 1/2-1/2

[Event "Late-Titled-Tuesday-Blitz-February-06-2024"]
[Site "Chess.com"]
[Date "2024.02.06"]
[Round "1"]
[White "VitaliyChayka"]
[Black "bascheyaro"]
[Result "0-1"]
[WhiteElo "2414"]
[BlackElo "2786"]
[TimeControl "180+1"]
[EndTime "14:07:43 PST"]
[Termination "bascheyaro won by resignation"]

1. d4 {[%clk 0:03:00.9]} 1... d5 {[%clk 0:02:59.9]} 2. Bf4 {[%clk 0:03:01.5]}
2... Bf5 {[%clk 0:02:59.4]} 3. e3 {[%clk 0:03:02.2]} 3... e6 {[%clk 0:02:59.5]}
4. Bd3 {[%clk 0:03:02.3]} 4... Bg6 {[%clk 0:02:59.6]} 5. Nf3 {[%clk 0:03:02.2]}
5... Nf6 {[%clk 0:02:58.4]} 6. O-O {[%clk 0:03:02.3]} 6... c5 {[%clk 0:02:57.5]}
7. c4 {[%clk 0:03:00.8]} 7... Nc6 {[%clk 0:02:42.7]} 8. Nc3 {[%clk 0:02:42.3]}
8... cxd4 {[%clk 0:02:40.1]} 9. exd4 {[%clk 0:02:40.1]} 9... Be7 {[%clk
0:02:33.7]} 10. Bxg6 {[%clk 0:02:31]} 10... hxg6 {[%clk 0:02:33.5]} 11. Qb3
{[%clk 0:02:31.7]} 11... Bb4 {[%clk 0:01:34.9]} 12. cxd5 {[%clk 0:02:25.7]}
12... Nxd5 {[%clk 0:01:34.8]} 13. Nxd5 {[%clk 0:02:24.6]} 13... Qxd5 {[%clk
0:01:34.9]} 14. Qxd5 {[%clk 0:02:23.6]} 14... exd5 {[%clk 0:01:35.8]} 15. a3
{[%clk 0:02:10.6]} 15... Be7 {[%clk 0:01:33.1]} 16. Rfe1 {[%clk 0:02:05.7]}
16... Kd7 {[%clk 0:01:33.1]} 17. Ne5+ {[%clk 0:02:04.8]} 17... Nxe5 {[%clk
0:01:33.4]} 18. Bxe5 {[%clk 0:02:04.1]} 18... f6 {[%clk 0:01:33.4]} 19. Bf4
{[%clk 0:02:03.8]} 19... Rhc8 {[%clk 0:01:32.5]} 20. Rac1 {[%clk 0:02:03.4]}
20... g5 {[%clk 0:01:31.9]} 21. Be3 {[%clk 0:02:00.8]} 21... b5 {[%clk
0:01:28.8]} 22. Kf1 {[%clk 0:01:56]} 22... Rc4 {[%clk 0:01:27.7]} 23. Ke2 {[%clk
0:01:56.2]} 23... a5 {[%clk 0:01:27]} 24. Kd3 {[%clk 0:01:53.6]} 24... a4 {[%clk
0:01:23.4]} 25. Re2 {[%clk 0:01:42.3]} 25... Bd6 {[%clk 0:01:22.7]} 26. h3
{[%clk 0:01:40]} 26... Re8 {[%clk 0:01:21.5]} 27. Rxc4 {[%clk 0:01:23.4]} 27...
dxc4+ {[%clk 0:00:51.7]} 28. Kc2 {[%clk 0:01:22.6]} 28... Kc6 {[%clk 0:00:49.8]}
29. Re1 {[%clk 0:01:12.6]} 29... b4 {[%clk 0:00:50]} 30. axb4 {[%clk 0:01:07.9]}
30... Bxb4 {[%clk 0:00:49.7]} 31. Ra1 {[%clk 0:01:08.7]} 31... Kb5 {[%clk
0:00:50]} 32. d5 {[%clk 0:00:57.9]} 32... Rd8 {[%clk 0:00:25.9]} 33. Rd1 {[%clk
0:00:58.2]} 33... Bc5 {[%clk 0:00:26.1]} 34. Bxc5 {[%clk 0:00:51.5]} 34... Kxc5
{[%clk 0:00:26.5]} 35. Ra1 {[%clk 0:00:52.3]} 35... Ra8 {[%clk 0:00:26.5]} 36.
Rd1 {[%clk 0:00:51.9]} 36... a3 {[%clk 0:00:27]} 37. Ra1 {[%clk 0:00:40.4]}
37... a2 {[%clk 0:00:24.2]} 38. Kc3 {[%clk 0:00:14]} 38... Kxd5 {[%clk
0:00:24.4]} 39. Rd1+ {[%clk 0:00:14.1]} 39... Kc5 {[%clk 0:00:24.5]} 40. Ra1
{[%clk 0:00:15]} 40... f5 {[%clk 0:00:23.8]} 41. f3 {[%clk 0:00:14.4]} 41... f4
{[%clk 0:00:23.4]} 42. Kd2 {[%clk 0:00:13.9]} 42... Kd4 {[%clk 0:00:23.8]} 43.
Kc2 {[%clk 0:00:14.8]} 43... Ke3 {[%clk 0:00:22.5]} 44. Kc3 {[%clk 0:00:15.3]}
44... Kf2 {[%clk 0:00:23]} 45. Kxc4 {[%clk 0:00:15.9]} 45... Kxg2 {[%clk
0:00:23.5]} 46. b4 {[%clk 0:00:16.4]} 46... Kxf3 {[%clk 0:00:21.1]} 47. b5
{[%clk 0:00:15.2]} 47... Kg2 {[%clk 0:00:21.4]} 48. b6 {[%clk 0:00:15.4]} 48...
f3 {[%clk 0:00:22]} 49. b7 {[%clk 0:00:12.4]} 49... Rb8 {[%clk 0:00:21.8]} 50.
Rxa2+ {[%clk 0:00:12.9]} 50... f2 {[%clk 0:00:22.2]} 0-1

[Event "Late-Titled-Tuesday-Blitz-February-06-2024"]
[Site "Chess.com"]
[Date "2024.02.06"]
[Round "1"]
[White "giomar27"]
[Black "LikeWater"]
[Result "0-1"]
[WhiteElo "2417"]
[BlackElo "2789"]
[TimeControl "180+1"]
[EndTime "14:07:44 PST"]
[Termination "LikeWater won by checkmate"]

1. d4 {[%clk 0:03:00.9]} 1... d6 {[%clk 0:02:55.3]} 2. Nc3 {[%clk 0:03:00.6]}
2... Nf6 {[%clk 0:02:48.9]} 3. Bf4 {[%clk 0:03:00.7]} 3... c6 {[%clk 0:02:46.3]}
4. e4 {[%clk 0:02:59.9]} 4... Qa5 {[%clk 0:02:40.3]} 5. Bd3 {[%clk 0:02:49.3]}
5... e5 {[%clk 0:02:39.2]} 6. dxe5 {[%clk 0:02:49.6]} 6... dxe5 {[%clk
0:02:40.1]} 7. Bg3 {[%clk 0:02:50.3]} 7... Bb4 {[%clk 0:02:31.6]} 8. Ne2 {[%clk
0:02:49.4]} 8... Bg4 {[%clk 0:02:31.5]} 9. f3 {[%clk 0:02:48.1]} 9... Be6 {[%clk
0:02:29.9]} 10. a3 {[%clk 0:02:48.1]} 10... Be7 {[%clk 0:02:14.8]} 11. O-O
{[%clk 0:02:46.6]} 11... O-O {[%clk 0:02:11.5]} 12. b4 {[%clk 0:02:46]} 12...
Qc7 {[%clk 0:02:10.9]} 13. Kh1 {[%clk 0:02:39.6]} 13... Nbd7 {[%clk 0:02:10.8]}
14. Nd4 {[%clk 0:02:39.1]} 14... Nh5 {[%clk 0:02:03]} 15. Nf5 {[%clk 0:02:32.9]}
15... Bf6 {[%clk 0:01:54.7]} 16. Qe1 {[%clk 0:02:24.2]} 16... g6 {[%clk
0:01:52.1]} 17. Ne3 {[%clk 0:02:19.9]} 17... a5 {[%clk 0:01:46.6]} 18. b5 {[%clk
0:02:17.9]} 18... Nc5 {[%clk 0:01:46.4]} 19. Bc4 {[%clk 0:02:14.3]} 19... Bg7
{[%clk 0:01:35.8]} 20. bxc6 {[%clk 0:02:01.8]} 20... bxc6 {[%clk 0:01:34.5]} 21.
Bxe6 {[%clk 0:02:01.1]} 21... Nxe6 {[%clk 0:01:35.4]} 22. Nc4 {[%clk 0:01:57.4]}
22... Nhf4 {[%clk 0:01:31.5]} 23. Bf2 {[%clk 0:01:54.5]} 23... Nd4 {[%clk
0:01:21.9]} 24. Ne3 {[%clk 0:01:51.2]} 24... Rab8 {[%clk 0:01:17.6]} 25. Rb1
{[%clk 0:01:50.9]} 25... h5 {[%clk 0:01:09.3]} 26. Qd2 {[%clk 0:01:49.8]} 26...
Rfd8 {[%clk 0:01:08.7]} 27. Rxb8 {[%clk 0:01:48.8]} 27... Rxb8 {[%clk
0:01:09.6]} 28. Nc4 {[%clk 0:01:44.2]} 28... Nfe6 {[%clk 0:00:58.8]} 29. Bg3
{[%clk 0:01:40.6]} 29... Rd8 {[%clk 0:00:55.2]} 30. Qf2 {[%clk 0:01:36]} 30...
f6 {[%clk 0:00:50.7]} 31. Rb1 {[%clk 0:01:34.4]} 31... Qe7 {[%clk 0:00:50.8]}
32. a4 {[%clk 0:01:27.2]} 32... Kh7 {[%clk 0:00:07.8]} 33. Qf1 {[%clk
0:01:05.2]} 33... Qc5 {[%clk 0:00:08.7]} 34. Bf2 {[%clk 0:01:04.6]} 34... Rd7
{[%clk 0:00:07.6]} 35. Nd1 {[%clk 0:00:59.9]} 35... Qe7 {[%clk 0:00:07]} 36.
Nxa5 {[%clk 0:00:57.6]} 36... Nxc2 {[%clk 0:00:06.5]} 37. Nxc6 {[%clk
0:00:57.4]} 37... Qd6 {[%clk 0:00:07.1]} 38. Qb5 {[%clk 0:00:45.5]} 38... Nf4
{[%clk 0:00:04.9]} 39. g3 {[%clk 0:00:40.1]} 39... Nh3 {[%clk 0:00:04.9]} 40.
Qc5 {[%clk 0:00:31.4]} 40... Qd2 {[%clk 0:00:04.9]} 41. Be3 {[%clk 0:00:25.2]}
41... Qe2 {[%clk 0:00:04.8]} 42. Qc3 {[%clk 0:00:09.3]} 42... Qxf3# {[%clk
0:00:04.9]} 0-1

[Event "Late-Titled-Tuesday-Blitz-February-06-2024"]
[Site "Chess.com"]
[Date "2024.02.06"]
[Round "1"]
[White "NCchamp"]
[Black "Semetey"]
[Result "1-0"]
[WhiteElo "2302"]
[BlackElo "2600"]
[TimeControl "180+1"]
[EndTime "14:07:46 PST"]
[Termination "NCchamp won on time"]

1. e4 {[%clk 0:02:57]} 1... e5 {[%clk 0:02:49.4]} 2. Nf3 {[%clk 0:02:56.9]} 2...
Nc6 {[%clk 0:02:49.6]} 3. Bc4 {[%clk 0:02:57.5]} 3... Bc5 {[%clk 0:02:48.9]} 4.
c3 {[%clk 0:02:57.6]} 4... Nf6 {[%clk 0:02:48.6]} 5. d4 {[%clk 0:02:57.7]} 5...
exd4 {[%clk 0:02:49.5]} 6. e5 {[%clk 0:02:58.6]} 6... d5 {[%clk 0:02:48.8]} 7.
Be2 {[%clk 0:02:59.3]} 7... Ne4 {[%clk 0:02:47.4]} 8. cxd4 {[%clk 0:03:00.1]}
8... Bb6 {[%clk 0:02:47]} 9. Nc3 {[%clk 0:02:58.5]} 9... Bg4 {[%clk 0:02:44.6]}
10. Be3 {[%clk 0:02:55]} 10... O-O {[%clk 0:02:43.4]} 11. O-O {[%clk 0:02:54.1]}
11... Qd7 {[%clk 0:02:37.5]} 12. Rc1 {[%clk 0:02:07.3]} 12... Rad8 {[%clk
0:02:32.4]} 13. Na4 {[%clk 0:02:06.3]} 13... f6 {[%clk 0:02:31.6]} 14. exf6
{[%clk 0:02:05.2]} 14... Rxf6 {[%clk 0:02:29.9]} 15. Nxb6 {[%clk 0:02:01.7]}
15... axb6 {[%clk 0:02:30.8]} 16. Qa4 {[%clk 0:01:58.4]} 16... Rdf8 {[%clk
0:02:15.3]} 17. Qd1 {[%clk 0:01:38]} 17... Rg6 {[%clk 0:01:53.2]} 18. Kh1 {[%clk
0:01:37.7]} 18... Qd6 {[%clk 0:01:09.5]} 19. a3 {[%clk 0:01:18.4]} 19... Bxf3
{[%clk 0:00:55.4]} 20. Bxf3 {[%clk 0:01:18.5]} 20... Ng5 {[%clk 0:00:55.5]} 21.
Bh5 {[%clk 0:01:12.9]} 21... Ne4 {[%clk 0:00:43.1]} 22. Bxg6 {[%clk 0:01:12.8]}
22... Qxg6 {[%clk 0:00:44]} 23. h3 {[%clk 0:01:08.2]} 23... Rf5 {[%clk
0:00:41.5]} 24. Qg4 {[%clk 0:01:04.4]} 24... Qf7 {[%clk 0:00:40]} 25. Kg1 {[%clk
0:00:51.5]} 25... h5 {[%clk 0:00:24.2]} 26. Qe2 {[%clk 0:00:50.9]} 26... g5
{[%clk 0:00:17.6]} 27. Rfd1 {[%clk 0:00:37.5]} 27... Qg6 {[%clk 0:00:16.2]} 28.
f3 {[%clk 0:00:37.3]} 28... Nd6 {[%clk 0:00:12]} 29. Bf2 {[%clk 0:00:33.4]}
29... Rf7 {[%clk 0:00:09.7]} 30. Qd3 {[%clk 0:00:31.4]} 30... Nf5 {[%clk
0:00:07.9]} 31. b4 {[%clk 0:00:29.2]} 31... Qd6 {[%clk 0:00:05.9]} 32. Re1
{[%clk 0:00:28.8]} 32... Nh4 {[%clk 0:00:05.6]} 33. Re8+ {[%clk 0:00:26.1]}
33... Kg7 {[%clk 0:00:05.1]} 34. Bxh4 {[%clk 0:00:26.3]} 34... gxh4 {[%clk
0:00:05.2]} 35. Rce1 {[%clk 0:00:26.1]} 35... Qf6 {[%clk 0:00:04.8]} 36. Rd1
{[%clk 0:00:21.9]} 36... Qg5 {[%clk 0:00:04.6]} 37. Qe2 {[%clk 0:00:18.8]} 37...
Rf6 {[%clk 0:00:03.6]} 38. Rc8 {[%clk 0:00:17.1]} 38... Rf7 {[%clk 0:00:03.3]}
39. Qe6 {[%clk 0:00:14.1]} 39... Qf4 {[%clk 0:00:02.9]} 40. Qxd5 {[%clk
0:00:12.2]} 40... Ne7 {[%clk 0:00:01.6]} 41. Qe6 {[%clk 0:00:07.4]} 1-0

[Event "Late-Titled-Tuesday-Blitz-February-06-2024"]
[Site "Chess.com"]
[Date "2024.02.06"]
[Round "1"]
[White "Ready4abattle"]
[Black "ozates"]
[Result "1-0"]
[WhiteElo "2307"]
[BlackElo "2606"]
[TimeControl "180+1"]
[EndTime "14:07:47 PST"]
[Termination "Ready4abattle won on time"]

1. e4 {[%clk 0:03:00.9]} 1... e5 {[%clk 0:02:59.9]} 2. Nf3 {[%clk 0:03:01.2]}
2... Nc6 {[%clk 0:02:58.1]} 3. Bc4 {[%clk 0:03:01.4]} 3... Nf6 {[%clk
0:02:56.6]} 4. Ng5 {[%clk 0:03:01.4]} 4... d5 {[%clk 0:02:55.1]} 5. exd5 {[%clk
0:03:02.3]} 5... Na5 {[%clk 0:02:55.2]} 6. Bb5+ {[%clk 0:03:02.7]} 6... c6
{[%clk 0:02:55.8]} 7. dxc6 {[%clk 0:03:03.6]} 7... bxc6 {[%clk 0:02:56.2]} 8.
Bd3 {[%clk 0:03:04.1]} 8... Ng4 {[%clk 0:02:54.7]} 9. Ne4 {[%clk 0:03:03.6]}
9... f5 {[%clk 0:02:54.3]} 10. Be2 {[%clk 0:03:02.8]} 10... h5 {[%clk
0:02:53.2]} 11. h3 {[%clk 0:03:02.2]} 11... Nf6 {[%clk 0:02:53.5]} 12. Nxf6+
{[%clk 0:03:00.1]} 12... Qxf6 {[%clk 0:02:54.4]} 13. Bxh5+ {[%clk 0:02:52.2]}
13... g6 {[%clk 0:02:54.4]} 14. Be2 {[%clk 0:02:52.8]} 14... Bc5 {[%clk
0:02:54.7]} 15. d3 {[%clk 0:02:43.8]} 15... f4 {[%clk 0:02:55.2]} 16. Nc3 {[%clk
0:02:41.4]} 16... Qh4 {[%clk 0:02:47.2]} 17. Ne4 {[%clk 0:02:38.9]} 17... Bb6
{[%clk 0:02:47.1]} 18. Bd2 {[%clk 0:02:17.1]} 18... Bf5 {[%clk 0:02:45.5]} 19.
g3 {[%clk 0:02:04.4]} 19... fxg3 {[%clk 0:02:33.6]} 20. fxg3 {[%clk 0:02:03.5]}
20... Qe7 {[%clk 0:02:25.4]} 21. Bg5 {[%clk 0:02:00.8]} 21... Qb4+ {[%clk
0:02:20.5]} 22. Bd2 {[%clk 0:01:44.2]} 22... Qe7 {[%clk 0:02:11.2]} 23. Bg4
{[%clk 0:01:26.8]} 23... O-O-O {[%clk 0:01:33.4]} 24. Qe2 {[%clk 0:01:25.6]}
24... Kb7 {[%clk 0:01:18.6]} 25. O-O-O {[%clk 0:01:25.1]} 25... Rd5 {[%clk
0:00:59.2]} 26. Kb1 {[%clk 0:01:14.9]} 26... Rb5 {[%clk 0:00:47.8]} 27. Nc3
{[%clk 0:01:10.5]} 27... Rxb2+ {[%clk 0:00:32.8]} 28. Kxb2 {[%clk 0:00:54.5]}
28... Qb4+ {[%clk 0:00:32.7]} 29. Ka1 {[%clk 0:00:49.7]} 29... Ka6 {[%clk
0:00:21.2]} 30. Rb1 {[%clk 0:00:46.8]} 30... Qa3 {[%clk 0:00:20.9]} 31. Bxf5
{[%clk 0:00:42]} 31... gxf5 {[%clk 0:00:20.6]} 32. d4+ {[%clk 0:00:38.6]} 32...
Kb7 {[%clk 0:00:20.9]} 33. dxe5 {[%clk 0:00:34.7]} 33... Rd8 {[%clk 0:00:19.1]}
34. Rhd1 {[%clk 0:00:27.6]} 34... Ka8 {[%clk 0:00:18.4]} 35. Qf3 {[%clk
0:00:19]} 35... Qc5 {[%clk 0:00:11.4]} 36. Be1 {[%clk 0:00:14.8]} 36... Re8
{[%clk 0:00:08.2]} 37. Qxf5 {[%clk 0:00:12]} 37... Nc4 {[%clk 0:00:08.2]} 38.
Qd3 {[%clk 0:00:11.6]} 38... Nxe5 {[%clk 0:00:06.8]} 39. Qd2 {[%clk 0:00:08.8]}
39... Nc4 {[%clk 0:00:06.9]} 40. Qc1 {[%clk 0:00:08]} 40... Ba5 {[%clk
0:00:05.4]} 41. Rb3 {[%clk 0:00:08]} 41... Ne3 {[%clk 0:00:04.5]} 42. Rd3 {[%clk
0:00:07.2]} 42... Ng2 {[%clk 0:00:03.8]} 43. Bd2 {[%clk 0:00:07]} 43... Qc4
{[%clk 0:00:02.3]} 44. Qb2 {[%clk 0:00:06.8]} 44... Ne1 {[%clk 0:00:01.7]} 45.
Re3 {[%clk 0:00:03.2]} 1-0

[Event "Late-Titled-Tuesday-Blitz-February-06-2024"]
[Site "Chess.com"]
[Date "2024.02.06"]
[Round "1"]
[White "Ajedrez_con_German"]
[Black "NowInChess"]
[Result "1-0"]
[WhiteElo "2659"]
[BlackElo "2344"]
[TimeControl "180+1"]
[EndTime "14:07:48 PST"]
[Termination "Ajedrez_con_German won on time"]

1. Nf3 {[%clk 0:02:56.3]} 1... Nf6 {[%clk 0:02:59.1]} 2. d4 {[%clk 0:02:52.7]}
2... g6 {[%clk 0:02:59.1]} 3. Bf4 {[%clk 0:02:45.2]} 3... Bg7 {[%clk 0:02:58.7]}
4. e3 {[%clk 0:02:43.7]} 4... O-O {[%clk 0:02:57.8]} 5. Be2 {[%clk 0:02:43.9]}
5... d6 {[%clk 0:02:58.2]} 6. O-O {[%clk 0:02:43.6]} 6... h6 {[%clk 0:02:47.6]}
7. h3 {[%clk 0:02:42.8]} 7... Nbd7 {[%clk 0:02:46.3]} 8. Bh2 {[%clk 0:02:42.4]}
8... b6 {[%clk 0:02:46.1]} 9. c4 {[%clk 0:02:42.1]} 9... Bb7 {[%clk 0:02:46.3]}
10. Nc3 {[%clk 0:02:41.5]} 10... a6 {[%clk 0:02:41.9]} 11. Rc1 {[%clk
0:02:36.7]} 11... e6 {[%clk 0:02:40.7]} 12. b4 {[%clk 0:02:36.6]} 12... a5
{[%clk 0:02:38]} 13. a3 {[%clk 0:02:36.8]} 13... axb4 {[%clk 0:02:38.1]} 14.
axb4 {[%clk 0:02:37.7]} 14... Qe7 {[%clk 0:02:36.5]} 15. Qb3 {[%clk 0:02:30.5]}
15... e5 {[%clk 0:02:18.9]} 16. c5 {[%clk 0:02:18.3]} 16... dxc5 {[%clk
0:02:04.5]} 17. bxc5 {[%clk 0:02:15.1]} 17... exd4 {[%clk 0:01:54.8]} 18. c6
{[%clk 0:02:00.2]} 18... Bxc6 {[%clk 0:01:45.3]} 19. Nxd4 {[%clk 0:01:59.8]}
19... Nc5 {[%clk 0:01:33.2]} 20. Nxc6 {[%clk 0:01:52.2]} 20... Qd7 {[%clk
0:01:04.4]} 21. Qb5 {[%clk 0:01:42.7]} 21... Nfe4 {[%clk 0:01:02]} 22. Nxe4
{[%clk 0:01:36.2]} 22... Nxe4 {[%clk 0:01:02.9]} 23. Nd4 {[%clk 0:01:14.8]}
23... Qe7 {[%clk 0:00:55.4]} 24. Bf3 {[%clk 0:01:02.5]} 24... Ra5 {[%clk
0:00:51]} 25. Nc6 {[%clk 0:00:45.8]} 25... Qe8 {[%clk 0:00:34.9]} 26. Qd3 {[%clk
0:00:15.1]} 26... Nc5 {[%clk 0:00:34.6]} 27. Qc2 {[%clk 0:00:11.3]} 27... Qe6
{[%clk 0:00:19.3]} 28. Nxa5 {[%clk 0:00:10.3]} 28... bxa5 {[%clk 0:00:19]} 29.
Qxc5 {[%clk 0:00:10.3]} 29... Rc8 {[%clk 0:00:14.8]} 30. Qxa5 {[%clk 0:00:10]}
30... c5 {[%clk 0:00:14.4]} 31. Rxc5 {[%clk 0:00:09.6]} 31... Re8 {[%clk
0:00:14.5]} 32. Qb5 {[%clk 0:00:07.5]} 32... Bf8 {[%clk 0:00:15]} 33. Qc4 {[%clk
0:00:06.4]} 33... Bxc5 {[%clk 0:00:12.2]} 34. Qxc5 {[%clk 0:00:07.3]} 34... Rc8
{[%clk 0:00:11.3]} 35. Qd4 {[%clk 0:00:06.4]} 35... Rc4 {[%clk 0:00:10.2]} 36.
Qd3 {[%clk 0:00:06.5]} 36... Kh7 {[%clk 0:00:09.5]} 37. Rd1 {[%clk 0:00:06.5]}
37... Ra4 {[%clk 0:00:08.5]} 38. Bd5 {[%clk 0:00:06.9]} 38... Qe7 {[%clk
0:00:08.1]} 39. Bf3 {[%clk 0:00:07.2]} 39... Qf6 {[%clk 0:00:07.9]} 40. Bg3
{[%clk 0:00:07.5]} 40... Ra7 {[%clk 0:00:07.7]} 41. Qd6 {[%clk 0:00:07.7]} 41...
Qf5 {[%clk 0:00:05.3]} 42. Qd4 {[%clk 0:00:08]} 42... Ra2 {[%clk 0:00:04.7]} 43.
Rf1 {[%clk 0:00:07.5]} 43... Qa5 {[%clk 0:00:03.9]} 44. Qd5 {[%clk 0:00:07.5]}
44... Qa6 {[%clk 0:00:03.2]} 45. Qxf7+ {[%clk 0:00:07.1]} 45... Kh8 {[%clk
0:00:04.1]} 46. Be5+ {[%clk 0:00:07.3]} 1-0

[Event "Late-Titled-Tuesday-Blitz-February-06-2024"]
[Site "Chess.com"]
[Date "2024.02.06"]
[Round "1"]
[White "NeverGiveUppp"]
[Black "gahryman"]
[Result "0-1"]
[WhiteElo "2331"]
[BlackElo "2679"]
[TimeControl "180+1"]
[EndTime "14:07:51 PST"]
[Termination "gahryman won on time"]

1. e4 {[%clk 0:03:00.9]} 1... c5 {[%clk 0:02:59.1]} 2. Nf3 {[%clk 0:02:59.6]}
2... Nc6 {[%clk 0:02:59.1]} 3. Bb5 {[%clk 0:02:59.3]} 3... g6 {[%clk 0:02:57.4]}
4. c3 {[%clk 0:02:58.5]} 4... Nf6 {[%clk 0:02:56.1]} 5. Qe2 {[%clk 0:02:57.5]}
5... Bg7 {[%clk 0:02:51.6]} 6. O-O {[%clk 0:02:55.6]} 6... O-O {[%clk
0:02:51.4]} 7. d4 {[%clk 0:02:48.5]} 7... d5 {[%clk 0:02:47.6]} 8. e5 {[%clk
0:02:47.6]} 8... Ne4 {[%clk 0:02:47.2]} 9. Rd1 {[%clk 0:02:47.3]} 9... Qb6
{[%clk 0:02:40.9]} 10. dxc5 {[%clk 0:02:39.2]} 10... Nxc5 {[%clk 0:02:32.3]} 11.
Rxd5 {[%clk 0:02:37.6]} 11... Be6 {[%clk 0:02:23.5]} 12. Rd1 {[%clk 0:01:57.4]}
12... Bg4 {[%clk 0:02:21.5]} 13. Bxc6 {[%clk 0:01:40]} 13... Qxc6 {[%clk
0:02:20.1]} 14. Bf4 {[%clk 0:01:39.1]} 14... Ne6 {[%clk 0:02:18.2]} 15. Bg3
{[%clk 0:01:32.4]} 15... Bxf3 {[%clk 0:02:14.4]} 16. Qxf3 {[%clk 0:01:28.7]}
16... Qxf3 {[%clk 0:02:10.7]} 17. gxf3 {[%clk 0:01:29.6]} 17... Rfd8 {[%clk
0:02:10.6]} 18. Na3 {[%clk 0:01:21.4]} 18... h5 {[%clk 0:02:03.8]} 19. Nc2
{[%clk 0:00:59.8]} 19... Bh6 {[%clk 0:01:45.9]} 20. Nd4 {[%clk 0:00:54.5]} 20...
Nxd4 {[%clk 0:01:33.6]} 21. Rxd4 {[%clk 0:00:54.7]} 21... Rxd4 {[%clk
0:01:27.6]} 22. cxd4 {[%clk 0:00:55.6]} 22... e6 {[%clk 0:01:28.2]} 23. Rd1
{[%clk 0:00:52.4]} 23... Rd8 {[%clk 0:01:20.7]} 24. Kf1 {[%clk 0:00:51.7]} 24...
Kf8 {[%clk 0:01:18.1]} 25. Ke2 {[%clk 0:00:51.2]} 25... Rc8 {[%clk 0:01:15.8]}
26. Kd3 {[%clk 0:00:50]} 26... Ke8 {[%clk 0:01:13.2]} 27. Re1 {[%clk 0:00:31.9]}
27... Kd7 {[%clk 0:01:11.3]} 28. Re2 {[%clk 0:00:28.5]} 28... Rc1 {[%clk
0:01:11.2]} 29. Rc2 {[%clk 0:00:28.9]} 29... Rxc2 {[%clk 0:01:10.1]} 30. Kxc2
{[%clk 0:00:29.8]} 30... Kc6 {[%clk 0:01:10.5]} 31. Kc3 {[%clk 0:00:17.8]} 31...
Kd5 {[%clk 0:01:09.9]} 32. b3 {[%clk 0:00:15.5]} 32... Bg5 {[%clk 0:00:54.1]}
33. a4 {[%clk 0:00:14.9]} 33... Bd8 {[%clk 0:00:52.9]} 34. f4 {[%clk 0:00:07.2]}
34... Bb6 {[%clk 0:00:52.4]} 35. f3 {[%clk 0:00:07.1]} 35... Bxd4+ {[%clk
0:00:52.2]} 36. Kd3 {[%clk 0:00:08]} 36... Bg1 {[%clk 0:00:42.6]} 37. h3 {[%clk
0:00:08.4]} 37... a6 {[%clk 0:00:43.1]} 38. Be1 {[%clk 0:00:08.1]} 38... g5
{[%clk 0:00:28.4]} 39. fxg5 {[%clk 0:00:05.4]} 39... Kxe5 {[%clk 0:00:28.7]} 40.
Bd2 {[%clk 0:00:03.5]} 40... Kf5 {[%clk 0:00:28.7]} 41. b4 {[%clk 0:00:03.5]}
41... b5 {[%clk 0:00:26.9]} 42. axb5 {[%clk 0:00:03.5]} 42... axb5 {[%clk
0:00:27]} 43. Bc1 {[%clk 0:00:03.4]} 43... Bb6 {[%clk 0:00:24.8]} 44. Bd2 {[%clk
0:00:03.7]} 44... e5 {[%clk 0:00:23]} 45. Bc1 {[%clk 0:00:01.9]} 45... Bd8
{[%clk 0:00:22.4]} 46. h4 {[%clk 0:00:02.3]} 46... Bb6 {[%clk 0:00:20.7]} 47.
Be3 {[%clk 0:00:02.9]} 47... Bc7 {[%clk 0:00:13.2]} 48. Bf2 {[%clk 0:00:03]}
48... Kf4 {[%clk 0:00:13]} 0-1